fUSD/lending_fUSD_20250106
["ID","MTS","AMOUNT","RATE_DAILY","PERIOD"]
[347916867,1736199046383,-4241.82829066,0.0001,2]
[347916868,1736199046394,-59519.57596014,0.0001,2]
[347916869,1736199046405,-996.32490086,0.0001,2]
[347916870,1736199046417,-721.22,0.0001,2]
[347916871,1736199046433,-286.237617,0.0001,2]
[347916872,1736199046444,-192976.11923922,0.0001,2]
[347916873,1736199046455,-838.55288175,0.0001,2]
[347916874,1736199046494,-3554.34587003,0.0001,2]
[347916877,1736199046505,-16020.74743192,0.0001,2]
[347918016,1736199232411,4045.0591711,7e-05,2]
[347918017,1736199304214,154.0,7e-05,30]
[347918019,1736199603963,154.0,7e-05,30]
[347918020,1736199730100,200.1811951,7.87e-05,2]
[347918022,1736199903486,155.0,7e-05,30]
[347918023,1736199923667,287.79,7.91e-05,2]
[347918024,1736199947979,350.57789782,0.0002,120]
[347918029,1736200165123,-3152.16497116,8.3e-05,2]
[347918030,1736200165143,-940.90322484,8.3e-05,2]
[347918039,1736200232398,-4740.82677516,8.3e-05,2]
[347918040,1736200232408,-282.84765411,8.3e-05,2]
[347918041,1736200232418,-6868.12136023,8.313e-05,2]
[347918042,1736200232427,-1245.69,8.313e-05,2]
[347918043,1736200232436,-150.0,9e-05,2]
[347918044,1736200232447,-150.0,9e-05,2]
[347918045,1736200232456,-150.0,9e-05,2]
[347918046,1736200232465,-250.0,9.212e-05,2]
[347918047,1736200232475,-250.0,9.269e-05,2]
[347918048,1736200232484,-1000.0,9.29e-05,2]
[347918049,1736200232494,-345.89,9.304e-05,2]
[347918050,1736200232504,-529.18,9.354e-05,2]
[347918051,1736200232514,-580.0,9.6e-05,2]
[347918052,1736200232523,-3206.232,9.8e-05,2]
[347918053,1736200232532,-153.626,9.8e-05,2]
[347918054,1736200232541,-150.0,9.863e-05,2]
[347918055,1736200232551,-7189.0716,9.9e-05,2]
[347918056,1736200232560,-50948.55999245,9.922e-05,2]
[347918057,1736200232570,-500.0,9.973e-05,2]
[347918058,1736200232579,-463.54,9.99e-05,2]
[347918059,1736200232590,-328.18583036,9.999e-05,2]
[347918060,1736200232600,-500.0,9.999e-05,2]
[347918061,1736200232610,-500.0,9.999e-05,2]
[347918062,1736200232620,-500.0,9.999e-05,2]
[347918063,1736200232630,-519.14,9.999e-05,2]
[347918064,1736200232639,-500.0,9.999e-05,2]
[347918065,1736200232648,-1114.08,9.999e-05,2]
[347918066,1736200232658,-500.0,9.999e-05,2]
[347918067,1736200232667,-500.0,9.999e-05,2]
[347918068,1736200232676,-500.0,9.999e-05,2]
[347918069,1736200232686,-500.0,9.999e-05,2]
[347918070,1736200232695,-500.0,9.999e-05,2]
[347918071,1736200232703,-500.0,9.999e-05,2]
[347918072,1736200232713,-793.68,9.999e-05,2]
[347918073,1736200232722,-500.0,9.999e-05,2]
[347918074,1736200232732,-500.0,9.999e-05,2]
[347918075,1736200232740,-500.0,9.999e-05,2]
[347918076,1736200232750,-420.59981098,9.999e-05,2]
[347918077,1736200232759,-500.0,9.999e-05,2]
[347918078,1736200232769,-500.0,9.999e-05,2]
[347918079,1736200232778,-707.72,9.999e-05,2]
[347918080,1736200232788,-500.0,9.999e-05,2]
[347918081,1736200232798,-644.44,9.999e-05,2]
[347918082,1736200232807,-500.0,9.999e-05,2]
[347918083,1736200232816,-561.66,9.999e-05,2]
[347918084,1736200232826,-500.0,9.999e-05,2]
[347918085,1736200232835,-500.0,9.999e-05,2]
[347918086,1736200232844,-500.0,9.999e-05,2]
[347918087,1736200232854,-890.14,9.999e-05,2]
[347918088,1736200232863,-753.01,9.999e-05,2]
[347918089,1736200232873,-55854.94140893,0.0001,2]
[347918090,1736200232890,-504.94080565,0.0001,2]
[347918091,1736200232925,-1301.24185652,0.0001,2]
[347918094,1736200233036,-1920.50389208,0.0001,2]
[347918095,1736200233050,-1305.0,0.0001,2]
[347918096,1736200233075,-500.0,9.999e-05,2]
[347918097,1736200233085,-1248.20828921,0.0001,2]
[347918101,1736200238318,-500.0,9.999e-05,2]
[347918102,1736200238327,-2466.71699,0.0001,2]
[347918103,1736200238375,-1020.0,0.0001,2]
[347918266,1736200240378,-469.31070039,9.999e-05,2]
[347918282,1736200240520,-30.68929961,9.999e-05,2]
[347918304,1736200240729,-292.30698525,9.999e-05,2]
[347918306,1736200240754,-7828.41022688,0.0001,2]
[347918311,1736200240798,-10310.28202644,0.0001,2]
[347918462,1736200243531,-500.0,9.999e-05,2]
[347918463,1736200243541,-500.0,9.999e-05,2]
[347918464,1736200243551,-2451.18426035,0.0001,2]
[347918465,1736200243563,-695.93,0.0001,2]
[347918466,1736200243575,-852.88573965,0.0001,2]
[347918467,1736200243591,-500.11388834,0.0001,2]
[347918468,1736200243603,-470048.95729063,0.0001,2]
[347918475,1736200246311,-500.0,9.999e-05,2]
[347918476,1736200246321,-500.0,9.999e-05,2]
[347918477,1736200246331,-500.0,9.999e-05,2]
[347918478,1736200246341,-8288.07941371,0.0001,2]
[347918479,1736200246370,-18402.20999995,0.0001,2]
[347918480,1736200246537,-275.48375697,0.0001,2]
[347918481,1736200246651,-1840.23840001,0.0001,2]
[347918482,1736200246663,-281.042383,0.0001,2]
[347918732,1736201431681,-732.51556422,8.263e-05,2]
[347918733,1736201431693,-660.24443578,8.263e-05,2]
[347918734,1736201431703,-165.6949,8.9e-05,2]
[347918735,1736201431712,-6563.17103053,9e-05,2]
[347918736,1736201431724,-450.0,9e-05,2]
[347918737,1736201431853,-450.0,9e-05,2]
[347918738,1736201431876,-6537.54863871,9e-05,2]
[347918739,1736201431898,-4442.056675,9e-05,2]
[347918740,1736201431910,-3332.6871248,9e-05,2]
[347918741,1736201431922,-6897.6099792,9e-05,2]
[347918803,1736201437488,-21326.92655176,9e-05,2]
[347918805,1736201437498,-250.0,9.418e-05,2]
[347918807,1736201437507,-186.98138003,9.418e-05,2]
[347918809,1736201437517,-23900.0,9.464e-05,2]
[347918811,1736201437527,-1000.0,9.527e-05,2]
[347918813,1736201437537,-186.98138002,9.527e-05,2]
[347918815,1736201437547,-5224.66,9.776e-05,2]
[347918817,1736201437556,-153.626,9.8e-05,2]
[347918819,1736201437565,-2564.986,9.8e-05,2]
[347918821,1736201437575,-1239.233,9.9e-05,2]
[347918823,1736201437584,-250.8032,9.9e-05,2]
[347918825,1736201437594,-172.94,9.975e-05,2]
[347918826,1736201437603,-500.0,9.999e-05,2]
[347918827,1736201437613,-500.0,9.999e-05,2]
[347918828,1736201437622,-500.0,9.999e-05,2]
[347918829,1736201437632,-500.0,9.999e-05,2]
[347918830,1736201437643,-500.0,9.999e-05,2]
[347918831,1736201437652,-500.0,9.999e-05,2]
[347918832,1736201437662,-500.0,9.999e-05,2]
[347918833,1736201437672,-500.0,9.999e-05,2]
[347918834,1736201437681,-500.0,9.999e-05,2]
[347918835,1736201437691,-500.0,9.999e-05,2]
[347918836,1736201437701,-500.0,9.999e-05,2]
[347918837,1736201437710,-500.0,9.999e-05,2]
[347918838,1736201437719,-500.0,9.999e-05,2]
[347918839,1736201437729,-500.0,9.999e-05,2]
[347918840,1736201437739,-500.0,9.999e-05,2]
[347918841,1736201437748,-500.0,9.999e-05,2]
[347918842,1736201437758,-500.0,9.999e-05,2]
[347918843,1736201437768,-610.505315,9.999e-05,2]
[347918844,1736201437778,-500.0,9.999e-05,2]
[347918845,1736201437787,-500.0,9.999e-05,2]
[347918846,1736201437798,-500.0,9.999e-05,2]
[347918847,1736201437807,-500.0,9.999e-05,2]
[347918848,1736201437816,-500.0,9.999e-05,2]
[347918849,1736201437826,-500.0,9.999e-05,2]
[347918850,1736201437835,-500.0,9.999e-05,2]
[347918851,1736201437844,-500.0,9.999e-05,2]
[347918852,1736201437854,-500.0,9.999e-05,2]
[347918853,1736201437863,-500.0,9.999e-05,2]
[347918854,1736201437873,-500.0,9.999e-05,2]
[347918855,1736201437883,-500.0,9.999e-05,2]
[347918856,1736201437892,-500.0,9.999e-05,2]
[347918857,1736201437901,-500.0,9.999e-05,2]
[347918858,1736201437911,-503.61922105,9.999e-05,2]
[347918859,1736201437920,-500.0,9.999e-05,2]
[347918861,1736201437930,-784.13,9.999e-05,2]
[347918862,1736201437939,-500.0,9.999e-05,2]
[347918864,1736201437948,-500.0,9.999e-05,2]
[347918866,1736201437957,-500.0,9.999e-05,2]
[347918868,1736201437967,-500.0,9.999e-05,2]
[347918870,1736201437976,-694.53,9.999e-05,2]
[347918872,1736201437986,-500.0,9.999e-05,2]
[347918873,1736201437995,-500.0,9.999e-05,2]
[347918875,1736201438004,-500.0,9.999e-05,2]
[347918877,1736201438014,-500.0,9.999e-05,2]
[347918879,1736201438023,-500.0,9.999e-05,2]
[347918881,1736201438032,-500.0,9.999e-05,2]
[347918883,1736201438043,-500.0,9.999e-05,2]
[347918885,1736201438052,-500.0,9.999e-05,2]
[347918886,1736201438061,-610.05,9.999e-05,2]
[347918889,1736201438071,-500.0,9.999e-05,2]
[347918892,1736201438080,-500.0,9.999e-05,2]
[347918894,1736201438090,-500.0,9.999e-05,2]
[347918896,1736201438099,-500.0,9.999e-05,2]
[347918898,1736201438108,-500.0,9.999e-05,2]
[347918900,1736201438117,-500.0,9.999e-05,2]
[347918901,1736201438126,-500.0,9.999e-05,2]
[347918903,1736201438136,-500.0,9.999e-05,2]
[347918906,1736201438148,-455.70222837,9.999e-05,2]
[347918907,1736201438157,-500.0,9.999e-05,2]
[347918909,1736201438166,-183.83287519,9.999e-05,2]
[347918911,1736201438175,-500.0,9.999e-05,2]
[347918913,1736201438185,-500.0,9.999e-05,2]
[347918915,1736201438194,-500.0,9.999e-05,2]
[347918916,1736201438203,-500.0,9.999e-05,2]
[347918917,1736201438213,-500.0,9.999e-05,2]
[347918918,1736201438223,-500.0,9.999e-05,2]
[347918919,1736201438232,-500.0,9.999e-05,2]
[347918920,1736201438242,-500.0,9.999e-05,2]
[347918921,1736201438251,-500.0,9.999e-05,2]
[347918922,1736201438261,-476.76821605,9.999e-05,2]
[347918923,1736201438271,-500.0,9.999e-05,2]
[347918924,1736201438280,-500.0,9.999e-05,2]
[347918925,1736201438290,-874.94,9.999e-05,2]
[347918926,1736201438299,-815.92,9.999e-05,2]
[347918927,1736201438309,-500.0,9.999e-05,2]
[347918928,1736201438319,-500.0,9.999e-05,2]
[347918929,1736201438328,-500.0,9.999e-05,2]
[347918930,1736201438337,-500.0,9.999e-05,2]
[347918931,1736201438347,-500.0,9.999e-05,2]
[347918932,1736201438356,-500.0,9.999e-05,2]
[347918933,1736201438369,-1067.66,9.999e-05,2]
[347918934,1736201438379,-500.0,9.999e-05,2]
[347918935,1736201438388,-3510.91783595,0.0001,2]
[347918937,1736201438402,-1018.0,0.0001,2]
[347918938,1736201438414,-1633.81961151,0.0001,2]
[347918940,1736201438426,-7852.48364567,0.0001,2]
[347918941,1736201438437,-997.57494038,0.0001,2]
[347918944,1736201438453,-42865.29142859,0.0001,2]
[347918946,1736201438464,-17931.07366304,0.0001,2]
[347918948,1736201438475,-547.18977324,0.0001,2]
[347918950,1736201438488,-896.4525,0.0001,2]
[347919095,1736201439899,-1018.0,0.0001,2]
[347919113,1736201440070,-25225.12629052,0.0001,2]
[347919118,1736201440104,-500.0,0.0001,2]
[347919446,1736201443371,-500.0,9.999e-05,2]
[347919448,1736201443381,-945615.83931671,0.0001,2]
[347919459,1736201443478,-135605.70883151,0.0001,2]
[347919463,1736201443511,-4404.99239564,0.0001,2]
[347919465,1736201443523,-2726.87761735,0.0001,2]
[347919468,1736201443535,-21409.91821442,0.0001,2]
[347919477,1736201443613,-485.305,0.0001,2]
[347919679,1736201445576,-500.0,9.999e-05,2]
[347919680,1736201445585,-649.357475,0.0001,2]
[347919683,1736201445597,-16659.60790308,0.0001,2]
[347919691,1736201445668,-300.0,0.0001,2]
[347919693,1736201445680,-679.40528476,0.0001,2]
[347919703,1736201445764,-46091.27029651,0.0001,2]
[347919707,1736201445801,-322.8916,0.0001,2]
[347919710,1736201445820,-401.21832325,0.0001,2]
[347919735,1736201446040,-500.0,0.0001,2]
[347919739,1736201446071,-6749.082116,0.0001,2]
[347919741,1736201446087,-1834.53801239,0.0001,2]
[347919743,1736201446098,-492.405,0.0001,2]
[347919745,1736201446109,-1253.16529958,0.0001,2]
[347919748,1736201446121,-325.91,0.0001,2]
[347919930,1736201649287,-240.0,0.00022,120]
[347919931,1736201649313,-277.284446,0.00022298,120]
[347919932,1736201649338,-2000.0,0.00022298,120]
[347919933,1736201649361,-502.325699,0.00022298,120]
[347919934,1736201649384,-202.063752,0.00022298,120]
[347919935,1736201649407,-6778.326103,0.000225,120]
[347919936,1736201774189,-10000.0,0.000225,120]
[347919939,1736201808674,-150.0,0.00021819,120]
[347919940,1736201808707,-9850.0,0.000225,120]
[347919946,1736202003710,155.0,0.00022,120]
[347919947,1736202039322,-3371.673897,0.000225,120]
[347919948,1736202039351,-150.0,0.00022699,120]
[347919949,1736202039382,-6478.326103,0.00023,120]
[347919950,1736202133548,-10000.0,0.00023,120]
[347919964,1736202561621,2089.87472624,0.00017,45]
[347919976,1736202631816,-1402.22,8.219e-05,2]
[347919977,1736202631826,-250.0,9.338e-05,2]
[347919978,1736202631835,-130.35,9.441e-05,2]
[347919981,1736202632141,-25.76927755,9.441e-05,2]
[347919982,1736202632151,-1000.0,9.441e-05,2]
[347919983,1736202632160,-300.0,9.499e-05,2]
[347919984,1736202632169,-782.544,9.5e-05,2]
[347919985,1736202632179,-6457.48064216,9.727e-05,2]
[347919986,1736202632222,-2515.94290178,9.727e-05,2]
[347919987,1736202632233,-362.94287197,9.727e-05,2]
[347919988,1736202632272,-2638.86621395,9.727e-05,2]
[347919989,1736202632303,-1775.81737014,9.727e-05,2]
[347919990,1736202632312,-250.0,9.931e-05,2]
[347919991,1736202632322,-206.19,9.958e-05,2]
[347919992,1736202632331,-150.0,9.96e-05,2]
[347919993,1736202632340,-207.15706924,9.973e-05,2]
[347919996,1736202637759,-161.48,9.335e-05,2]
[347919997,1736202637769,-2808.58248404,9.973e-05,2]
[347919998,1736202637780,-5091.0,9.973e-05,2]
[347919999,1736202637858,-11926.46638547,9.973e-05,2]
[347920000,1736202637882,-10223.5697687,9.973e-05,2]
[347920001,1736202637982,-1860.04352126,9.973e-05,2]
[347920370,1736202641640,-10783.18077129,9.973e-05,2]
[347920372,1736202641650,-500.0,9.973e-05,2]
[347920374,1736202641660,-37856.5039578,9.988e-05,2]
[347920376,1736202641671,-2124.94160717,9.988e-05,2]
[347920379,1736202641682,-2546.684949,9.988e-05,2]
[347920381,1736202641692,-712.5805283,9.988e-05,2]
[347920390,1736202641778,-1131.71500343,9.988e-05,2]
[347920393,1736202641789,-1019.7449215,9.988e-05,2]
[347920404,1736202641886,-491.2881889,9.988e-05,2]
[347920408,1736202641917,-8193.00488679,9.988e-05,2]
[347920412,1736202641945,-451.5099872,9.988e-05,2]
[347920493,1736202642772,-1938.45550524,9.988e-05,2]
[347920512,1736202642883,-6224.08578409,9.988e-05,2]
[347920517,1736202642895,-282.07,9.988e-05,2]
[347920520,1736202642906,-463.59,9.988e-05,2]
[347920523,1736202642918,-445.10019242,9.988e-05,2]
[347920538,1736202642990,-88189.62621653,9.988e-05,2]
[347920541,1736202643000,-500.0,9.998e-05,2]
[347920544,1736202643009,-1135.98698653,9.999e-05,2]
[347920546,1736202643019,-500.0,9.999e-05,2]
[347920548,1736202643028,-500.0,9.999e-05,2]
[347920550,1736202643037,-500.0,9.999e-05,2]
[347920552,1736202643046,-500.0,9.999e-05,2]
[347920554,1736202643055,-500.0,9.999e-05,2]
[347920556,1736202643064,-500.0,9.999e-05,2]
[347920558,1736202643073,-500.0,9.999e-05,2]
[347920560,1736202643083,-500.0,9.999e-05,2]
[347920562,1736202643092,-500.0,9.999e-05,2]
[347920564,1736202643102,-500.0,9.999e-05,2]
[347920566,1736202643111,-500.0,9.999e-05,2]
[347920568,1736202643121,-665.59,9.999e-05,2]
[347920570,1736202643131,-584.63,9.999e-05,2]
[347920572,1736202643140,-500.0,9.999e-05,2]
[347920574,1736202643150,-500.0,9.999e-05,2]
[347920576,1736202643160,-500.0,9.999e-05,2]
[347920578,1736202643169,-500.0,9.999e-05,2]
[347920580,1736202643178,-500.0,9.999e-05,2]
[347920582,1736202643187,-500.0,9.999e-05,2]
[347920584,1736202643197,-500.0,9.999e-05,2]
[347920586,1736202643207,-500.0,9.999e-05,2]
[347920588,1736202643216,-500.0,9.999e-05,2]
[347920590,1736202643225,-500.0,9.999e-05,2]
[347920592,1736202643235,-500.0,9.999e-05,2]
[347920594,1736202643245,-500.0,9.999e-05,2]
[347920597,1736202643255,-622.13,9.999e-05,2]
[347920598,1736202643264,-500.0,9.999e-05,2]
[347920601,1736202643274,-749.34,9.999e-05,2]
[347920603,1736202643283,-699.07,9.999e-05,2]
[347920605,1736202643295,-500.0,9.999e-05,2]
[347920607,1736202643304,-435.4,9.999e-05,2]
[347920609,1736202643313,-500.0,9.999e-05,2]
[347920611,1736202643323,-500.0,9.999e-05,2]
[347920613,1736202643333,-500.0,9.999e-05,2]
[347920615,1736202643342,-500.0,9.999e-05,2]
[347920617,1736202643352,-500.0,9.999e-05,2]
[347920619,1736202643362,-500.0,9.999e-05,2]
[347920621,1736202643371,-500.0,9.999e-05,2]
[347920623,1736202643381,-500.0,9.999e-05,2]
[347920625,1736202643390,-838.48,9.999e-05,2]
[347920627,1736202643399,-751.46,9.999e-05,2]
[347920629,1736202643409,-500.0,9.999e-05,2]
[347920631,1736202643418,-500.0,9.999e-05,2]
[347920633,1736202643427,-1023.17,9.999e-05,2]
[347920635,1736202643437,-500.0,9.999e-05,2]
[347920637,1736202643446,-500.0,9.999e-05,2]
[347920639,1736202643455,-500.0,9.999e-05,2]
[347920641,1736202643465,-126155.11680194,0.0001,2]
[347920664,1736202643684,-572.4865023,0.0001,2]
[347920667,1736202643703,-74552.24274399,0.0001,2]
[347920669,1736202643715,-1836.16629,0.0001,2]
[347920672,1736202643728,-679.30499915,0.0001,2]
[347920673,1736202643739,-1868.53283797,0.0001,2]
[347920676,1736202643838,-3782.25594112,0.0001,2]
[347920677,1736202643853,-408.92382811,0.0001,2]
[347920678,1736202643871,-1127.02490741,0.0001,2]
[347920679,1736202643886,-1233.86,0.0001,2]
[347920680,1736202643899,-5256.86064651,0.0001,2]
[347920683,1736202643914,-52979.90415979,0.0001,2]
[347920691,1736202645746,-4507.18095193,0.0001,2]
[347920692,1736202645853,-500.0,9.999e-05,2]
[347920693,1736202645863,-2965.46992,0.0001,2]
[347920694,1736202645960,-29599.9998,0.0001,2]
[347920695,1736202645971,-68973.200001,0.0001,2]
[347920696,1736202645982,-24832.78590849,0.0001,2]
[347920697,1736202645993,-45037.99448613,0.0001,2]
[347920698,1736202646008,-4848.3864252,0.0001,2]
[347920703,1736202791010,320.568057,0.00021931,120]
[347920704,1736202793521,2000.0,0.00021931,120]
[347920705,1736202798128,500.0,0.00021931,120]
[347920706,1736202838284,200.0,0.00021931,120]
[347920707,1736202845149,-6778.33567293,0.000225,120]
[347920708,1736202845181,-3221.66432707,0.00023,120]
[347920709,1736202879804,-10000.0,0.00023,120]
[347920710,1736202909728,-10000.0,0.00023,120]
[347920712,1736202954242,-10000.0,0.00023,120]
[347920714,1736203584720,164.99,7.397e-05,2]
[347920728,1736203831921,-1410.78,8.219e-05,2]
[347920729,1736203831930,-1915.38456526,8.771e-05,2]
[347920730,1736203831940,-250.0,8.771e-05,2]
[347920731,1736203831951,-250.0,8.771e-05,2]
[347920732,1736203831960,-161.48,8.843e-05,2]
[347920733,1736203831969,-1915.38456526,8.861e-05,2]
[347920734,1736203831979,-594.15952268,8.861e-05,2]
[347920735,1736203832082,-905.84047732,8.861e-05,2]
[347920736,1736203832092,-303.65552268,8.955e-05,2]
[347920737,1736203832172,-174.03257232,8.955e-05,2]
[347920738,1736203832181,-150.0,9e-05,2]
[347920739,1736203832191,-210.29916374,9e-05,2]
[347920740,1736203832202,-606.11,9.096e-05,2]
[347920741,1736203832211,-164.99,9.115e-05,2]
[347920742,1736203832221,-200.0,9.161e-05,2]
[347920743,1736203832232,-206.19,9.274e-05,2]
[347920744,1736203832241,-18684.27826394,9.291e-05,2]
[347920745,1736203832253,-646.9888024,9.291e-05,2]
[347920746,1736203832264,-3468.73293366,9.291e-05,2]
[347920747,1736203832274,-23900.0,9.307e-05,2]
[347920748,1736203832283,-150.0,9.315e-05,2]
[347920749,1736203832292,-250.0,9.344e-05,2]
[347920750,1736203832302,-1000.0,9.384e-05,2]
[347920751,1736203832312,-150.0,9.478e-05,2]
[347920752,1736203832322,-150.0,9.478e-05,2]
[347920753,1736203832331,-150.0,9.478e-05,2]
[347920754,1736203832341,-182.88,9.478e-05,2]
[347920755,1736203832350,-150.0,9.478e-05,2]
[347920756,1736203832359,-182.88,9.478e-05,2]
[347920757,1736203832372,-182.88,9.478e-05,2]
[347920758,1736203832382,-182.88,9.478e-05,2]
[347920759,1736203832391,-182.57,9.478e-05,2]
[347920760,1736203832402,-768.467,9.5e-05,2]
[347920761,1736203832411,-676.05114348,9.574e-05,2]
[347920764,1736203832421,-20112.0,9.606e-05,2]
[347920765,1736203832431,-186.03,9.755e-05,2]
[347920767,1736203832440,-1656.63659059,9.801e-05,2]
[347920769,1736203832452,-500.62740941,9.801e-05,2]
[347920772,1736203832462,-153.626,9.801e-05,2]
[347920774,1736203832471,-330.24154257,9.91e-05,2]
[347920776,1736203832483,-504.09385401,9.91e-05,2]
[347920778,1736203832495,-2217.3139447,9.91e-05,2]
[347920780,1736203832504,-1017.27781173,9.91e-05,2]
[347920782,1736203832524,-8973.37187485,9.91e-05,2]
[347920783,1736203832536,-6972.91848431,9.91e-05,2]
[347920784,1736203832547,-1780.904326,9.91e-05,2]
[347920785,1736203832571,-1244.15535,9.91e-05,2]
[347920786,1736203832583,-1303.491325,9.91e-05,2]
[347920787,1736203832595,-644.34701126,9.91e-05,2]
[347921277,1736203837892,-4276.03992596,9.91e-05,2]
[347921279,1736203837904,-2551.75,9.91e-05,2]
[347921281,1736203837915,-936.22883448,9.91e-05,2]
[347921284,1736203837928,-721.89975412,9.91e-05,2]
[347921286,1736203837938,-500.0,9.998e-05,2]
[347921288,1736203837947,-500.0,9.998e-05,2]
[347921290,1736203837957,-500.0,9.998e-05,2]
[347921292,1736203837967,-500.0,9.998e-05,2]
[347921294,1736203837976,-500.0,9.998e-05,2]
[347921296,1736203837986,-500.0,9.998e-05,2]
[347921298,1736203837996,-393.17664436,9.998e-05,2]
[347921300,1736203838005,-500.0,9.998e-05,2]
[347921302,1736203838015,-500.0,9.998e-05,2]
[347921304,1736203838024,-500.0,9.998e-05,2]
[347921306,1736203838033,-500.0,9.998e-05,2]
[347921308,1736203838043,-500.0,9.998e-05,2]
[347921310,1736203838052,-181.78577974,9.998e-05,2]
[347921311,1736203838062,-500.0,9.998e-05,2]
[347921313,1736203838071,-151.43996141,9.998e-05,2]
[347921315,1736203838080,-500.0,9.998e-05,2]
[347921317,1736203838089,-500.0,9.998e-05,2]
[347921319,1736203838100,-500.0,9.998e-05,2]
[347921321,1736203838110,-500.0,9.998e-05,2]
[347921323,1736203838120,-500.0,9.998e-05,2]
[347921325,1736203838130,-500.0,9.998e-05,2]
[347921327,1736203838139,-500.0,9.998e-05,2]
[347921329,1736203838148,-500.0,9.998e-05,2]
[347921332,1736203838158,-500.0,9.999e-05,2]
[347921334,1736203838167,-500.0,9.999e-05,2]
[347921335,1736203838176,-500.0,9.999e-05,2]
[347921338,1736203838186,-500.0,9.999e-05,2]
[347921339,1736203838196,-500.0,9.999e-05,2]
[347921341,1736203838205,-500.0,9.999e-05,2]
[347921344,1736203838215,-500.0,9.999e-05,2]
[347921346,1736203838224,-669.94,9.999e-05,2]
[347921347,1736203838234,-500.0,9.999e-05,2]
[347921349,1736203838244,-500.0,9.999e-05,2]
[347921351,1736203838253,-589.80688888,9.999e-05,2]
[347921353,1736203838262,-500.0,9.999e-05,2]
[347921355,1736203838272,-500.0,9.999e-05,2]
[347921358,1736203838282,-416.75444768,9.999e-05,2]
[347921359,1736203838291,-500.0,9.999e-05,2]
[347921362,1736203838300,-500.0,9.999e-05,2]
[347921364,1736203838310,-500.0,9.999e-05,2]
[347921366,1736203838319,-500.0,9.999e-05,2]
[347921368,1736203838328,-500.0,9.999e-05,2]
[347921369,1736203838337,-500.0,9.999e-05,2]
[347921372,1736203838346,-500.0,9.999e-05,2]
[347921373,1736203838356,-598.30490611,9.999e-05,2]
[347921376,1736203838366,-500.0,9.999e-05,2]
[347921377,1736203838384,-500.0,9.999e-05,2]
[347921379,1736203838393,-500.0,9.999e-05,2]
[347921382,1736203838403,-500.0,9.999e-05,2]
[347921383,1736203838413,-500.0,9.999e-05,2]
[347921385,1736203838422,-500.0,9.999e-05,2]
[347921387,1736203838431,-500.0,9.999e-05,2]
[347921389,1736203838440,-500.0,9.999e-05,2]
[347921391,1736203838450,-500.0,9.999e-05,2]
[347921393,1736203838459,-315.06484299,9.999e-05,2]
[347921395,1736203838469,-500.0,9.999e-05,2]
[347921397,1736203838479,-500.0,9.999e-05,2]
[347921399,1736203838488,-500.0,9.999e-05,2]
[347921402,1736203838497,-500.0,9.999e-05,2]
[347921404,1736203838506,-500.0,9.999e-05,2]
[347921406,1736203838516,-500.0,9.999e-05,2]
[347921408,1736203838525,-500.0,9.999e-05,2]
[347921410,1736203838534,-500.0,9.999e-05,2]
[347921411,1736203838543,-500.0,9.999e-05,2]
[347921414,1736203838553,-500.0,9.999e-05,2]
[347921415,1736203838562,-500.0,9.999e-05,2]
[347921417,1736203838571,-178.04115197,9.999e-05,2]
[347921420,1736203838580,-291.21824641,9.999e-05,2]
[347921421,1736203838589,-500.0,9.999e-05,2]
[347921423,1736203838599,-500.0,9.999e-05,2]
[347921425,1736203838607,-500.0,9.999e-05,2]
[347921427,1736203838617,-500.0,9.999e-05,2]
[347921429,1736203838626,-500.0,9.999e-05,2]
[347921431,1736203838635,-500.0,9.999e-05,2]
[347921433,1736203838644,-500.0,9.999e-05,2]
[347921436,1736203838655,-500.0,9.999e-05,2]
[347921437,1736203838666,-500.0,9.999e-05,2]
[347921439,1736203838675,-500.0,9.999e-05,2]
[347921441,1736203838684,-500.0,9.999e-05,2]